fUSD/lending_fUSD_20260130
["ID","MTS","AMOUNT","RATE_DAILY","PERIOD"]
[404067608,1769782242879,-209.4,0.00015765,7]
[404067609,1769782242889,-1000.0,0.000158,2]
[404067611,1769782242899,-500.0,0.00015848,2]
[404067612,1769782242908,-150.0,0.00015848,2]
[404067613,1769782242917,-3662.12853159,0.00015849,2]
[404067614,1769782242926,-9664.41513539,0.00015849,2]
[404067615,1769782242936,-162.0,0.0001585,2]
[404067616,1769782242945,-174.61919141,0.00015875,2]
[404067617,1769782242955,-1000.0,0.00015875,2]
[404067618,1769782242964,-1000.0,0.00015875,2]
[404067619,1769782242974,-578.20924308,0.00015875,2]
[404067620,1769782242983,-3000.0,0.00015875,2]
[404067621,1769782242993,-3000.0,0.00015875,2]
[404067622,1769782243004,-3000.0,0.00015875,2]
[404067623,1769782243014,-2000.0,0.00015875,2]
[404067624,1769782243025,-3000.0,0.00015875,2]
[404067625,1769782243034,-2000.0,0.00015875,2]
[404067626,1769782243045,-3000.0,0.00015875,2]
[404067627,1769782243058,-2000.0,0.00015875,2]
[404067628,1769782243068,-2000.0,0.00015875,2]
[404067629,1769782243078,-2000.0,0.00015875,2]
[404067630,1769782243087,-2000.0,0.00015875,2]
[404067631,1769782243098,-322.6107,0.00015875,2]
[404067632,1769782243109,-2000.0,0.00015875,2]
[404067633,1769782243118,-2000.0,0.00015875,2]
[404067634,1769782243128,-1000.0,0.00015875,2]
[404067635,1769782243137,-1000.0,0.00015875,2]
[404067636,1769782243146,-500.0,0.00015875,2]
[404067637,1769782243158,-1022.5850038,0.00015875,2]
[404067638,1769782243169,-500.0,0.00015875,2]
[404067639,1769782243178,-500.0,0.00015875,2]
[404067640,1769782243190,-500.0,0.00015875,2]
[404067641,1769782243200,-500.0,0.00015875,2]
[404067642,1769782243210,-500.0,0.00015875,2]
[404067643,1769782243221,-500.0,0.00015875,2]
[404067644,1769782243232,-500.0,0.00015875,2]
[404067645,1769782243243,-854.2589148,0.00015875,2]
[404067646,1769782243253,-500.0,0.00015875,2]
[404067647,1769782243263,-1000.0,0.00015875,2]
[404067648,1769782243272,-403.67529487,0.00015875,2]
[404067649,1769782243281,-1000.0,0.00015875,2]
[404067650,1769782243290,-1000.0,0.00015875,2]
[404067651,1769782243300,-1000.0,0.00015875,2]
[404067652,1769782243310,-500.0,0.00015875,2]
[404067653,1769782243320,-1000.0,0.00015875,2]
[404067654,1769782243329,-1000.0,0.00015875,2]
[404067655,1769782243339,-500.0,0.00015875,2]
[404067656,1769782243348,-1101.29429659,0.00015875,2]
[404067657,1769782243357,-500.0,0.00015875,2]
[404067658,1769782243366,-500.0,0.00015875,2]
[404067659,1769782243375,-179.7201173,0.00015875,2]
[404067660,1769782243387,-209.40437684,0.00015875,2]
[404067661,1769782243399,-151.0,0.00015875,2]
[404067662,1769782243411,-1000.0,0.00015875,2]
[404067663,1769782243421,-1000.0,0.00015875,2]
[404067664,1769782243431,-3000.0,0.00015875,2]
[404067665,1769782243442,-3000.0,0.00015875,2]
[404067666,1769782243451,-3000.0,0.00015875,2]
[404067667,1769782243461,-3000.0,0.00015875,2]
[404067668,1769782243470,-3000.0,0.00015875,2]
[404067669,1769782243480,-2000.0,0.00015875,2]
[404067670,1769782243490,-500.0,0.00015903,2]
[404067671,1769782243501,-902.15,0.00015918,2]
[404067672,1769782243512,-217.15233878,0.0001593,2]
[404067673,1769782243522,-500.0,0.0001595,2]
[404067674,1769782243531,-882.95,0.00015957,2]
[404067675,1769782243542,-500.0,0.00015957,2]
[404067676,1769782243554,-500.0,0.00015958,2]
[404067677,1769782243564,-225.18697532,0.00015985,2]
[404067678,1769782243574,-1326.63,0.00016005,2]
[404067679,1769782243585,-500.0,0.00016012,2]
[404067680,1769782243595,-233.51889341,0.0001604,2]
[404067681,1769782243607,-1326.63,0.00016056,2]
[404067682,1769782243617,-21057.55041477,0.00016058,2]
[404067683,1769782243629,-14595.00771349,0.00016058,2]
[404067684,1769782243639,-500.0,0.00016067,2]
[404067685,1769782243648,-433.0,0.0001608,2]
[404067686,1769782243659,-242.15909246,0.00016095,2]
[404067687,1769782243669,-1326.63,0.00016107,2]
[404067688,1769782243678,-11367.69,0.00016116,2]
[404067689,1769782243687,-64581.45,0.00016116,2]
[404067690,1769782243699,-3698.07,0.00016116,2]
[404067691,1769782243710,-2101.52,0.00016116,2]
[404067692,1769782243721,-10339.4,0.00016116,2]
[404067693,1769782243731,-3660.02,0.00016116,2]
[404067694,1769782243743,-310.7,0.00016116,2]
[404067695,1769782243754,-9999.99,0.00016116,2]
[404067696,1769782243763,-297.97,0.00016116,2]
[404067697,1769782243772,-9999.99,0.00016116,2]
[404067698,1769782243782,-150.99,0.00016116,2]
[404067699,1769782243796,-14004.42,0.00016116,2]
[404067700,1769782243806,-6247.3,0.00016116,2]
[404067701,1769782243816,-3826.81,0.00016116,2]
[404067702,1769782243826,-999.99,0.00016116,2]
[404067703,1769782243836,-9999.99,0.00016116,2]
[404067704,1769782243845,-9154.49,0.00016116,2]
[404067705,1769782243855,-3404.72,0.00016116,2]
[404067706,1769782243864,-299.99,0.00016116,4]
[404067707,1769782243873,-2935.46,0.00016116,2]
[404067708,1769782243883,-9999.99,0.00016116,2]
[404067709,1769782243892,-9999.99,0.00016116,2]
[404067710,1769782243901,-150.99,0.00016116,2]
[404067711,1769782243911,-1041.6,0.00016116,2]
[404067712,1769782243920,-500.0,0.00016122,2]
[404067713,1769782243930,-150.0,0.00016143,2]
[404067714,1769782243939,-150.0,0.00016143,2]
[404067715,1769782243949,-150.0,0.00016143,2]
[404067716,1769782243958,-150.101,0.00016143,2]
[404067717,1769782243968,-150.0,0.00016143,2]
[404067718,1769782243977,-150.0,0.00016143,2]
[404067719,1769782243987,-150.184,0.00016143,2]
[404067720,1769782243996,-1409.0,0.00016143,2]
[404067721,1769782244006,-616.0,0.00016143,2]
[404067722,1769782244016,-3490.571,0.00016143,2]
[404067723,1769782244025,-1334.0,0.00016143,2]
[404067724,1769782244034,-251.11897888,0.0001615,2]
[404067725,1769782244043,-1326.63,0.00016158,2]
[404067726,1769782244053,-500.0,0.00016177,2]
[404067727,1769782244062,-260.4103811,0.00016205,2]
[404067728,1769782244072,-1326.63,0.00016209,2]
[404067729,1769782244081,-882.95,0.00016231,2]
[404067730,1769782244090,-500.0,0.00016231,2]
[404067731,1769782244100,-500.0,0.00016232,2]
[404067732,1769782244111,-157.69,0.00016245,2]
[404067733,1769782244120,-1326.63,0.0001626,2]
[404067734,1769782244131,-270.0455652,0.0001626,2]
[404067735,1769782244140,-439.8103178,0.00016286,2]
[404067736,1769782244150,-1326.63,0.00016311,2]
[404067737,1769782244160,-280.03725112,0.00016315,2]
[404067738,1769782244174,-1326.63,0.00016362,2]
[404067739,1769782244185,-290.39862941,0.0001637,2]
[404067740,1769782244195,-500.0,0.00016373,2]
[404067741,1769782244205,-500.0,0.00016373,2]
[404067742,1769782244214,-225.37911043,0.00016373,2]
[404067743,1769782244226,-500.0,0.00016373,2]
[404067744,1769782244236,-500.0,0.00016373,2]
[404067745,1769782244246,-500.0,0.00016373,2]
[404067746,1769782244255,-500.0,0.00016373,2]
[404067747,1769782244265,-500.0,0.00016373,2]
[404067748,1769782244274,-160.21744138,0.00016373,2]
[404067749,1769782244283,-500.0,0.00016373,2]
[404067750,1769782244293,-500.0,0.00016373,2]
[404067751,1769782244304,-568.87365999,0.00016373,2]
[404067752,1769782244314,-500.0,0.00016373,2]
[404067753,1769782244323,-164.62391136,0.00016373,2]
[404067754,1769782244332,-558.9380785,0.00016373,2]
[404067755,1769782244341,-500.0,0.00016373,2]
[404067756,1769782244350,-500.0,0.00016373,2]
[404067757,1769782244359,-177.64323639,0.00016373,2]
[404067758,1769782244368,-500.0,0.00016373,2]
[404067759,1769782244378,-160.32431704,0.00016373,2]
[404067760,1769782244388,-160.21943413,0.00016373,2]
[404067761,1769782244401,-500.0,0.00016373,2]
[404067762,1769782244411,-163.00594696,0.00016373,2]
[404067763,1769782244421,-500.0,0.00016373,2]
[404067764,1769782244431,-500.0,0.00016373,2]
[404067765,1769782244440,-500.0,0.00016373,2]
[404067766,1769782244450,-500.0,0.00016373,2]
[404067767,1769782244459,-239.55126374,0.00016373,2]
[404067768,1769782244469,-500.0,0.00016373,2]
[404067769,1769782244478,-500.0,0.00016373,2]
[404067770,1769782244487,-500.0,0.00016373,2]
[404067771,1769782244496,-217.57575976,0.00016373,2]
[404067772,1769782244506,-500.0,0.00016373,2]
[404067773,1769782244516,-500.0,0.00016373,2]
[404067774,1769782244525,-503.15498018,0.00016373,2]
[404067775,1769782244534,-500.0,0.00016373,2]
[404067776,1769782244543,-500.0,0.00016373,2]
[404067777,1769782244553,-500.0,0.00016373,2]
[404067778,1769782244562,-166.21493216,0.00016373,2]
[404067779,1769782244576,-500.0,0.00016373,2]
[404067780,1769782244585,-500.0,0.00016373,2]
[404067781,1769782244594,-500.60369246,0.00016373,2]
[404067782,1769782244603,-500.0,0.00016373,2]
[404067783,1769782244612,-500.0,0.00016373,2]
[404067784,1769782244622,-500.0,0.00016373,2]
[404067785,1769782244631,-500.0,0.00016373,2]
[404067786,1769782244640,-500.0,0.00016373,2]
[404067787,1769782244650,-500.0,0.00016373,2]
[404067788,1769782244659,-162.0,0.000164,2]
[404067789,1769782244668,-161.0,0.000164,2]
[404067790,1769782244677,-2833.0,0.000164,2]
[404067791,1769782244687,-2828.0,0.000164,2]
[404067792,1769782244696,-1326.63,0.00016413,2]
[404067793,1769782244705,-181.08010149,0.00016423,2]
[404067794,1769782244715,-885.86649465,0.00016423,2]
[404067795,1769782244724,-301.1433787,0.00016425,2]
[404067796,1769782244733,-2000.0,0.00016438,2]
[404067797,1769782244743,-500.0,0.00016438,2]
[404067798,1769782244752,-498.90914229,0.00016438,2]
[404067799,1769782244761,-500.0,0.00016438,2]
[404067800,1769782244771,-500.0,0.00016438,2]
[404067801,1769782244780,-431.19649282,0.00016438,2]
[404067802,1769782244790,-500.0,0.00016463,2]
[404067803,1769782244799,-436.47012991,0.00016463,2]
[404067804,1769782244809,-1326.63,0.00016464,2]
[404067805,1769782244819,-772.81,0.00016467,2]
[404067806,1769782245056,-158.77663044,0.00016492,2]
[404067807,1769782245066,-882.95,0.00016505,2]
[404067808,1769782245075,-500.0,0.00016505,2]
[404067809,1769782245084,-902.15,0.00016515,2]
[404067810,1769782245093,-1326.63,0.00016515,2]
[404067811,1769782245102,-155.0,0.00016518,2]
[404067812,1769782245112,-21057.55041477,0.00016519,2]
[404067813,1769782245123,-14595.00771349,0.00016519,2]
[404067814,1769782245134,-1326.63,0.00016566,2]
[404067815,1769782245143,-500.0,0.00016584,2]
[404067816,1769782245154,-502.29,0.00016584,2]
[404067817,1769782245163,-500.0,0.00016584,2]
[404067818,1769782245172,-1326.63,0.00016617,2]
[404067819,1769782245182,-2351.0,0.00016644,2]
[404067820,1769782245191,-600.0,0.00016654,2]
[404067821,1769782245200,-1326.63,0.00016668,2]
[404067822,1769782245210,-165.35,0.00016712,2]
[404067823,1769782245219,-1326.63,0.00016719,2]
[404067824,1769782245229,-2833.0,0.0001672,2]
[404067825,1769782245240,-163.0,0.0001672,2]
[404067826,1769782245251,-229.69,0.00016724,2]
[404067827,1769782245261,-772.81,0.00016741,2]
[404067828,1769782245272,-1326.63,0.0001677,2]
[404067829,1769782245282,-882.96649203,0.00016779,2]
[404067830,1769782245292,-348.7043661,0.00016779,2]
[404067831,1769782245302,-1000.0,0.000168,3]
[404067832,1769782245311,-1000.0,0.000168,5]
[404067833,1769782245321,-1326.63,0.00016822,2]
[404067834,1769782245330,-429.47,0.00016859,2]
[404067835,1769782245339,-1326.63,0.00016873,2]
[404067836,1769782245348,-162.0,0.000169,2]
[404067837,1769782245357,-1075.4,0.00016909,2]
[404067838,1769782245367,-3190.55752623,0.00016915,2]
[404067839,1769782245377,-500.86269689,0.00016921,2]
[404067840,1769782245388,-500.4902994,0.00016921,2]
[404067841,1769782245400,-500.0,0.00016921,2]
[404067842,1769782245409,-1000.0,0.00016921,2]
[404067843,1769782245419,-1000.0,0.00016921,2]
[404067844,1769782245429,-504.68661395,0.00016921,2]
[404067845,1769782245439,-1000.0,0.00016921,2]
[404067846,1769782245451,-1000.0,0.00016921,2]
[404067847,1769782245460,-541.28684359,0.00016921,2]
[404067848,1769782245471,-1000.0,0.00016921,2]
[404067849,1769782245479,-503.09870012,0.00016921,2]
[404067850,1769782245489,-1000.0,0.00016921,2]
[404067851,1769782245498,-1000.0,0.00016921,2]
[404067852,1769782245507,-1000.0,0.00016921,2]
[404067853,1769782245517,-1000.0,0.00016921,2]
[404067854,1769782245528,-459.6118856,0.00016921,2]
[404067855,1769782245539,-1000.0,0.00016921,2]
[404067856,1769782245551,-877.26188408,0.00016921,2]
[404067857,1769782245561,-203.98074386,0.00016921,2]
[404067858,1769782245573,-490.28446551,0.00016921,2]
[404067859,1769782245582,-1000.0,0.00016921,2]
[404067860,1769782245594,-1000.91709451,0.00016921,2]
[404067861,1769782245604,-1000.0,0.00016921,2]
[404067862,1769782245613,-1000.28855452,0.00016921,2]
[404067863,1769782245623,-1009.36195064,0.00016921,2]
[404067864,1769782245633,-401.53067419,0.00016921,2]
[404067865,1769782245643,-1000.0,0.00016921,2]
[404067866,1769782245652,-1000.0,0.00016921,2]
[404067867,1769782245661,-500.0,0.00016921,2]
[404067868,1769782245670,-1000.0,0.00016921,2]
[404067869,1769782245682,-804.05633745,0.00016921,2]
[404067870,1769782245692,-1000.0,0.00016921,2]
[404067871,1769782245704,-1000.81154381,0.00016921,2]
[404067872,1769782245713,-500.0,0.00016921,2]
[404067873,1769782245723,-1326.63,0.00016924,2]
[404067874,1769782245734,-187.78006525,0.00016971,2]
[404067875,1769782245744,-918.64355495,0.00016971,2]
[404067876,1769782245754,-1326.63,0.00016975,2]
[404067877,1769782245763,-21057.55041477,0.00016979,2]
[404067878,1769782245773,-14595.00771349,0.00016979,2]
[404067879,1769782245783,-200.19033336,0.00016983,2]
[404067880,1769782245792,-500.0,0.00016988,2]
[404067881,1769782245803,-502.29,0.00016988,2]
[404067882,1769782245812,-489.74164167,0.00016988,2]
[404067883,1769782245821,-772.81,0.00017015,2]
[404067884,1769782245831,-1075.4,0.00017018,2]
[404067885,1769782245840,-157.69,0.00017018,2]
[404067886,1769782245850,-163.0,0.0001704,2]
[404067887,1769782245861,-163.0,0.0001704,2]
[404067888,1769782245871,-2833.0,0.0001704,2]
[404067889,1769782245881,-902.15,0.00017112,2]
[404067890,1769782245891,-1075.4,0.00017127,2]
[404067891,1769782245900,-1037.24664297,0.00017225,2]
[404067893,1769782245910,-1075.4,0.00017236,2]
[404067894,1769782245921,-334.5472959,0.00017244,2]
[404067895,1769782245932,-772.81,0.00017289,2]
[404067896,1769782245943,-600.0,0.00017322,2]
[404067897,1769782245953,-550.54512392,0.00017339,2]
[404067898,1769782245963,-1075.4,0.00017345,2]
[404067899,1769782245973,-17049.17385856,0.00017349,2]
[404067900,1769782245983,-165.0,0.0001736,2]
[404067901,1769782245992,-736.0,0.00017373,2]
[404067902,1769782246002,-229.69,0.00017407,2]
[404067903,1769782246011,-240.0,0.00017437,2]
[404067904,1769782246020,-21057.55041477,0.0001744,2]
[404067905,1769782246039,-14595.00771349,0.0001744,2]
[404067906,1769782246050,-1075.4,0.00017455,2]
[404067907,1769782246060,-580.80754144,0.00017468,2]
[404067908,1769782246069,-1500.0,0.00017468,2]
[404067909,1769782246079,-1000.8272521,0.00017468,2]
[404067910,1769782246089,-1500.0,0.00017468,2]
[404067911,1769782246098,-1505.10384072,0.00017468,2]
[404067912,1769782246108,-656.65111135,0.00017468,2]
[404067913,1769782246117,-1500.0,0.00017468,2]
[404067914,1769782246127,-1500.0,0.00017468,2]
[404067915,1769782246138,-1500.0,0.00017468,2]
[404067916,1769782246148,-206.11887871,0.00017468,2]
[404067917,1769782246158,-1500.0,0.00017468,2]
[404067918,1769782246168,-1500.0,0.00017468,2]
[404067919,1769782246179,-1500.0,0.00017468,2]
[404067920,1769782246190,-1000.73878486,0.00017468,2]
[404067921,1769782246201,-429.47,0.00017508,2]
[404067922,1769782246211,-194.72792766,0.00017519,2]
[404067923,1769782246221,-952.63336648,0.00017519,2]
[404067924,1769782246231,-772.81,0.00017563,2]
[404067925,1769782246241,-1075.4,0.00017564,2]
[404067926,1769782246251,-5888.0,0.0001764,2]
[404067927,1769782246261,-1075.4,0.00017673,2]
[404067928,1769782246270,-902.15,0.00017709,2]
[404067929,1769782246279,-225.20123052,0.00017737,2]
[404067930,1769782246289,-162.01453578,0.00017737,3]
[404067931,1769782246299,-1075.4,0.00017782,2]
[404067932,1769782246308,-157.69,0.00017792,2]
[404067933,1769782246318,-151.0,0.00017797,2]
[404067934,1769782246328,-5888.0,0.000178,2]
[404067935,1769782246338,-1000.0,0.000178,4]
[404067936,1769782246347,-1300.0,0.000178,6]
[404067937,1769782246359,-500.0,0.00017808,2]
[404067938,1769782246368,-500.0,0.00017829,2]
[404067940,1769782246377,-300.0,0.00017829,2]
[404067941,1769782246388,-300.0,0.00017829,2]
[404067942,1769782246400,-109605.83836455,0.0001783,2]
[404067943,1769782246410,-772.81,0.00017837,2]
[404067944,1769782246419,-816.27950553,0.00017839,2]
[404067945,1769782246429,-300.0,0.00017848,2]
[404067946,1769782246439,-300.0,0.00017848,2]
[404067947,1769782246448,-500.0,0.00017848,2]
[404067948,1769782246458,-502.29,0.00017848,2]
[404067949,1769782246469,-25504.54444829,0.00017849,2]
[404067950,1769782246479,-34508.5488,0.00017849,2]
[404067951,1769782246490,-500.0,0.00017863,2]
[404067952,1769782246501,-25000.0,0.00017867,3]
[404067953,1769782246511,-25000.0,0.00017876,3]
[404067954,1769782246523,-25000.0,0.00017885,3]
[404067955,1769782246532,-1075.4,0.00017891,2]
[404067956,1769782246543,-25000.0,0.00017893,3]
[404067957,1769782246555,-300.0,0.00017899,2]
[404067958,1769782246565,-300.0,0.00017899,2]
[404067959,1769782246576,-15339.73797614,0.000179,3]
[404067960,1769782246586,-10000.0,0.000179,2]
[404067961,1769782246596,-200.0,0.000179,6]
[404067962,1769782246606,-21057.55041477,0.000179,2]
[404067963,1769782246615,-14595.00771349,0.000179,2]
[404067964,1769782246625,-500.0,0.000179,2]
[404067965,1769782246636,-500.0,0.000179,2]
[404067966,1769782246645,-500.0,0.000179,2]
[404067967,1769782246655,-500.0,0.000179,2]
[404067968,1769782246664,-500.0,0.000179,2]
[404067969,1769782246674,-500.0,0.000179,2]
[404067970,1769782246685,-500.0,0.000179,2]
[404067971,1769782246695,-500.0,0.000179,2]
[404067972,1769782246706,-500.0,0.000179,2]
[404067973,1769782246718,-500.0,0.000179,2]
[404067974,1769782246728,-500.0,0.000179,2]
[404067975,1769782246737,-500.0,0.000179,2]
[404067976,1769782246747,-500.0,0.000179,2]
[404067977,1769782246756,-500.0,0.000179,2]
[404067978,1769782246767,-500.0,0.000179,2]
[404067979,1769782246778,-500.0,0.000179,2]
[404067980,1769782246787,-500.0,0.000179,2]
[404067981,1769782246798,-500.0,0.000179,2]
[404067982,1769782246808,-398.11835072,0.000179,2]
[404067983,1769782246818,-25000.0,0.00017902,3]
[404067984,1769782246827,-25000.0,0.00017911,3]
[404067985,1769782246838,-500.0,0.00017918,2]
[404067986,1769782246848,-25000.0,0.0001792,3]
[404067987,1769782246857,-25000.0,0.00017929,3]
[404067988,1769782246867,-25000.0,0.00017937,3]
[404067989,1769782246876,-25000.0,0.00017946,3]
[404067990,1769782246887,-25000.0,0.00017955,3]
[404067991,1769782246898,-25000.0,0.00017964,3]
[404067992,1769782246909,-500.0,0.00017972,2]
[404067993,1769782246919,-25000.0,0.00017973,3]
[404067995,1769782246929,-500.0,0.00017973,2]
[404067996,1769782246939,-333.51196878,0.00017973,2]
[404067999,1769782246949,-161.46714206,0.00017973,2]
[404068001,1769782246959,-500.0,0.00017973,2]
[404068003,1769782246972,-500.0,0.00017973,2]
[404068005,1769782246982,-500.0,0.00017973,2]
[404068007,1769782246992,-500.0,0.00017973,2]
[404068008,1769782247002,-500.0,0.00017973,2]
[404068009,1769782247012,-500.0,0.00017973,2]
[404068010,1769782247021,-500.0,0.00017973,2]
[404068011,1769782247032,-500.0,0.00017973,2]
[404068012,1769782247042,-150.0,0.00017973,2]
[404068013,1769782247052,-500.78976485,0.00017973,2]
[404068014,1769782247062,-500.0,0.00017973,2]
[404068015,1769782247071,-500.0,0.00017973,2]
[404068016,1769782247081,-500.0,0.00017973,2]
[404068017,1769782247091,-500.0,0.00017973,2]
[404068018,1769782247100,-175.57287607,0.00017973,2]
[404068019,1769782247110,-500.0,0.00017973,2]
[404068020,1769782247120,-151.06501544,0.00017973,2]
[404068021,1769782247130,-500.0,0.00017973,2]
[404068022,1769782247139,-500.0,0.00017973,2]
[404068023,1769782247149,-500.0,0.00017973,2]
[404068024,1769782247159,-500.0,0.00017973,2]
[404068025,1769782247169,-500.0,0.00017973,2]
[404068026,1769782247178,-500.0,0.00017973,2]
[404068027,1769782247188,-163.36858583,0.00017973,2]
[404068028,1769782247198,-500.0,0.00017973,2]
[404068029,1769782247208,-500.63516671,0.00017973,2]
[404068030,1769782247218,-500.0,0.00017973,2]
[404068031,1769782247227,-500.0,0.00017973,2]
[404068032,1769782247237,-500.0,0.00017973,2]
[404068033,1769782247246,-500.0,0.00017973,2]
[404068034,1769782247256,-208.33059439,0.00017973,2]
[404068035,1769782247265,-500.0,0.00017973,2]
[404068036,1769782247275,-500.0,0.00017973,2]
[404068037,1769782247285,-500.0,0.00017973,2]
[404068038,1769782247294,-500.2342072,0.00017973,2]
[404068039,1769782247304,-500.0,0.00017973,2]
[404068040,1769782247314,-432.02224032,0.00017973,2]
[404068041,1769782247324,-210.27851574,0.00017973,2]
[404068042,1769782247335,-160.23001291,0.00017973,2]
[404068043,1769782247344,-500.0,0.00017973,2]
[404068044,1769782247354,-500.0,0.00017973,2]
[404068045,1769782247365,-500.0,0.00017973,2]
[404068046,1769782247375,-500.0,0.00017973,2]
[404068047,1769782247386,-500.0,0.00017973,2]
[404068048,1769782247397,-158.22969695,0.00017973,2]
[404068049,1769782247408,-160.13080306,0.00017973,2]
[404068050,1769782247418,-161.90727761,0.00017973,2]
[404068051,1769782247427,-501.03562757,0.00017973,2]
[404068052,1769782247439,-160.00319068,0.00017973,2]
[404068053,1769782247449,-340.31348241,0.00017973,2]
[404068054,1769782247459,-160.11295309,0.00017973,2]
[404068055,1769782247562,-161.13076084,0.00017973,2]
[404068056,1769782247573,-392.26050896,0.00017973,2]
[404068057,1769782247582,-500.0,0.00017973,2]
[404068058,1769782247591,-500.0,0.00017973,2]
[404068059,1769782247601,-208.78313746,0.00017973,2]
[404068060,1769782247615,-162.64188199,0.00017973,2]
[404068061,1769782247624,-500.0,0.00017973,2]
[404068062,1769782247635,-509.35254647,0.00017973,2]
[404068063,1769782247650,-162.07893444,0.00017973,2]
[404068064,1769782247659,-500.0,0.00017973,2]
[404068065,1769782247668,-500.0,0.00017973,2]
[404068066,1769782247682,-500.0,0.00017973,2]
[404068067,1769782247696,-165.89161412,0.00017973,2]
[404068068,1769782247706,-500.0,0.00017973,2]
[404068069,1769782247715,-500.0,0.00017973,2]
[404068070,1769782247724,-500.0,0.00017973,2]
[404068071,1769782247734,-501.19732692,0.00017973,2]
[404068072,1769782247743,-500.0,0.00017973,2]
[404068073,1769782247752,-500.0,0.00017973,2]
[404068074,1769782247762,-500.0,0.00017973,2]
[404068075,1769782247771,-169.6863681,0.00017973,2]
[404068076,1769782247781,-500.42764262,0.00017973,2]
[404068077,1769782247790,-512.27368738,0.00017973,2]
[404068078,1769782247799,-284.37159555,0.00017973,2]
[404068079,1769782247809,-500.0,0.00017973,2]
[404068080,1769782247819,-500.0,0.00017973,2]
[404068081,1769782247828,-164.73666016,0.00017973,2]
[404068082,1769782247838,-500.0,0.00017973,2]
[404068083,1769782247847,-500.29869688,0.00017973,2]
[404068084,1769782247858,-25000.0,0.00017981,3]
[404068085,1769782247868,-27148.6865295,0.00017985,2]
[404068086,1769782247877,-816.27950553,0.0001799,2]
[404068087,1769782247887,-25000.0,0.0001799,3]
[404068088,1769782247897,-322.6648713,0.00017991,2]
[404068089,1769782247906,-12433.5348616,0.00017991,2]
[404068090,1769782247916,-14151.7219536,0.00017991,2]
[404068091,1769782247925,-500.0,0.00017993,2]
[404068092,1769782247935,-500.0,0.00017993,2]
[404068093,1769782247945,-502.29,0.00017993,2]
[404068094,1769782247955,-300.0,0.00017993,2]
[404068095,1769782247964,-300.0,0.00017993,2]
[404068096,1769782247974,-155865.8332911,0.00017994,2]
[404068097,1769782247983,-1174.2940212,0.00017994,2]
[404068098,1769782247993,-150.0,0.00017999,2]
[404068099,1769782248002,-500.0,0.00017999,2]
[404068100,1769782248012,-357.52185889,0.00017999,2]
[404068101,1769782248021,-300.0,0.00017999,2]
[404068102,1769782248031,-25000.0,0.00017999,3]
[404068103,1769782248040,-500.0,0.00017999,2]
[404068104,1769782248050,-500.0,0.00017999,2]
[404068105,1769782248060,-500.0,0.00017999,2]
[404068106,1769782248070,-563.2740213,0.00017999,2]
[404068107,1769782248080,-502.29,0.00017999,2]
[404068108,1769782248093,-502.29,0.00017999,2]
[404068109,1769782248113,-502.29,0.00017999,2]
[404068110,1769782248124,-502.29,0.00017999,2]
[404068111,1769782248135,-502.29,0.00017999,2]
[404068112,1769782248145,-502.29,0.00017999,2]
[404068113,1769782248157,-502.29,0.00017999,2]
[404068114,1769782248167,-502.29,0.00017999,2]
[404068115,1769782248178,-502.38820375,0.00017999,2]
[404068116,1769782248189,-300.0,0.00017999,2]
[404068117,1769782248201,-300.0,0.00017999,2]